bitfinex/quotes_SOLUSD_20250823
["timestamp","ask_amount","ask_price","bid_price","bid_amount"]
[1755913029277,56.66826881,197.45,197.44,0.03]
[1755913029608,48.93,197.45,197.44,0.03]
[1755913030487,69.65386282,197.45,197.44,0.03]
[1755913031496,69.63386282,197.45,197.44,0.03]
[1755913031797,70.22386282,197.45,197.44,0.03]
[1755913032204,86.58709809,197.4,197.39,7.12826881]
[1755913032401,78.33709809,197.39,197.35,26.0]
[1755913032587,118.95709809,197.38,197.35,26.0]
[1755913032788,78.33709809,197.37,197.35,26.0]
[1755913032983,78.33709809,197.37,197.36,0.7]
[1755913033584,78.33709809,197.37,197.36,8.11259195]
[1755913034216,10.0,218.6,197.39,26.0]
[1755913034217,8.25,197.44,197.39,26.0]
[1755913034396,8.25,197.44,197.43,7.12826881]
[1755913034397,40.64,197.44,197.43,7.12826881]
[1755913034593,8.25,197.47,197.43,7.82826881]
[1755913034789,8.25,197.49,197.46,7.12826881]
[1755913034994,8.25,197.47,197.46,7.12826881]
[1755913035189,48.89,197.47,197.46,7.12826881]
[1755913035407,48.87,197.47,197.46,7.12826881]
[1755913035710,8.25,197.45,197.44,0.7]
[1755913036007,8.25,197.45,197.42,26.0]
[1755913036207,48.87,197.45,197.42,26.0]
[1755913036427,8.25,197.43,197.42,26.0]
[1755913036714,8.25,197.44,197.42,33.12826881]
[1755913036915,8.25,197.43,197.42,26.0]
[1755913037207,8.25,197.43,197.39,0.28432314]
[1755913037409,8.25,197.43,197.42,26.0]
[1755913037615,8.25,197.43,197.42,33.12826881]
[1755913037810,8.25,197.43,197.42,33.82826881]
[1755913037995,8.75,197.43,197.42,33.82826881]
[1755913038198,49.35,197.43,197.42,33.82826881]
[1755913038594,49.35,197.43,197.42,7.12826881]
[1755913039007,49.35,197.43,197.42,10.65014117]
[1755913039315,49.94,197.43,197.42,3.52187236]
[1755913041596,8.75,197.43,197.42,3.58401104]
[1755913041801,48.81,197.43,197.42,4.28401104]
[1755913042212,48.81,197.43,197.42,3.58401104]
[1755913043024,8.25,197.43,197.42,3.58401104]
[1755913043335,48.79,197.43,197.42,3.58401104]
[1755913046109,55.91826881,197.43,197.42,3.58401104]
[1755913047197,74.75308705,197.41,197.38,7.15826881]
[1755913047416,8.25,197.39,197.38,7.82826881]
[1755913047616,8.25,197.39,197.38,7.15826881]
[1755913048113,8.25,197.39,197.38,7.82826881]
[1755913048316,8.25,197.39,197.38,7.82834268]
[1755913048513,8.25,197.39,197.38,7.15834268]
[1755913048712,8.25,197.39,197.38,4.48549488]
[1755913048893,8.25,197.39,197.38,0.03]
[1755913050114,8.25,197.39,197.38,5.15549488]
[1755913050319,48.73,197.39,197.38,0.03]
[1755913051121,48.73,197.39,197.38,0.7]
[1755913053949,48.71,197.39,197.38,0.03]
[1755913054127,8.25,197.39,197.38,0.7]
[1755913054350,48.71,197.39,197.38,0.7]
[1755913055150,48.69,197.39,197.38,0.7]
[1755913055628,8.25,197.39,197.38,5.15549488]
[1755913055954,48.71,197.39,197.38,5.15549488]
[1755913058335,48.71,197.39,197.38,0.7]
[1755913058751,48.71,197.39,197.38,5.15549488]
[1755913059850,48.71,197.39,197.38,0.03]
[1755913060773,48.71,197.39,197.38,30.48549488]
[1755913060945,48.71,197.39,197.38,31.15549488]
[1755913061666,67.35108889,197.39,197.38,0.03]
[1755913062463,48.71,197.39,197.38,0.03]
[1755913063164,53.16549488,197.39,197.38,0.03]
[1755913064256,53.75549488,197.39,197.38,0.03]
[1755913064465,53.16549488,197.39,197.38,0.03]
[1755913064664,48.71,197.39,197.38,0.03]
[1755913064854,67.35108889,197.39,197.38,0.03]
[1755913066964,8.25,197.33,197.31,0.67]
[1755913067145,8.25,197.33,197.32,4.45549488]
[1755913067349,48.65,197.33,197.32,5.12549488]
[1755913067948,48.65,197.33,197.32,0.67]
[1755913068150,48.65,197.33,197.31,26.0]
[1755913068353,8.25,197.32,197.31,26.0]
[1755913068577,8.25,197.32,197.31,30.45549488]
[1755913068981,48.63,197.32,197.31,30.45549488]
[1755913069278,48.63,197.32,197.31,31.12549488]
[1755913070185,48.63,197.32,197.31,0.67]
[1755913070483,48.63,197.32,197.31,5.12549488]
[1755913071064,8.25,197.31,197.3,26.0]
[1755913071258,8.25,197.31,197.3,30.45549488]
[1755913071576,8.25,197.31,197.3,30.48549488]
[1755913071786,48.61,197.31,197.3,31.15549488]
[1755913072080,8.25,197.31,197.3,31.15549488]
[1755913072252,48.61,197.31,197.3,31.15549488]
[1755913073556,48.61,197.31,197.3,4.48549488]
[1755913073881,48.61,197.31,197.3,0.03]
[1755913074274,8.25,197.31,197.3,0.03]
[1755913074476,48.63,197.31,197.3,0.03]
[1755913079304,12.70549488,197.31,197.3,0.03]
[1755913079604,48.63,197.31,197.3,0.03]
[1755913079963,49.22,197.31,197.3,0.03]
[1755913080164,53.67549488,197.31,197.3,0.03]
[1755913081522,49.22,197.31,197.3,0.03]
[1755913081666,54.182278,197.31,197.3,0.03]
[1755913081866,13.212278,197.31,197.3,0.03]
[1755913082087,48.63,197.31,197.3,0.03]
[1755913082298,53.67549488,197.31,197.3,0.03]
[1755913082601,67.27108889,197.31,197.3,0.03]
[1755913083181,66.68108889,197.31,197.3,0.03]
[1755913083405,12.70549488,197.31,197.3,0.03]
[1755913083697,8.25,197.31,197.3,0.03]
[1755913083890,48.63,197.31,197.3,0.03]
[1755913084090,8.25,197.31,197.3,0.03]
[1755913084480,48.63,197.31,197.3,0.03]
[1755913084696,8.25,197.31,197.3,0.7]
[1755913084892,48.63,197.31,197.3,0.7]
[1755913085299,48.63,197.31,197.3,0.03]
[1755913086604,12.70549488,197.31,197.3,0.03]
[1755913086903,53.08549488,197.31,197.3,0.03]
[1755913087200,26.89108889,197.31,197.3,0.03]
[1755913087504,67.27108889,197.31,197.3,0.03]
[1755913088017,66.68108889,197.31,197.3,0.03]
[1755913088379,53.08549488,197.31,197.3,0.03]
[1755913088884,48.63,197.31,197.3,0.03]
[1755913089184,53.08549488,197.31,197.3,0.03]
[1755913089697,12.70549488,197.31,197.3,0.03]
[1755913089900,8.25,197.31,197.3,0.03]
[1755913090092,8.25,197.31,197.3,5.15549488]
[1755913090288,8.25,197.31,197.3,0.03]
[1755913090795,8.25,197.31,197.3,0.7]
[1755913091100,8.25,197.31,197.3,5.15549488]
[1755913092087,8.25,197.31,197.3,0.03]
[1755913094490,48.63,197.31,197.3,0.03]
[1755913094807,8.25,197.31,197.3,5.15549488]
[1755913094989,8.25,197.33,197.32,26.0]
[1755913095302,8.25,197.33,197.32,5.12549488]
[1755913095996,8.25,197.32,197.3,0.03]
[1755913096199,8.25,197.31,197.3,26.03]
[1755913096397,48.63,197.31,197.3,26.03]
[1755913096614,48.63,197.31,197.3,30.48549488]
[1755913096780,8.25,197.31,197.3,31.15549488]
[1755913096981,8.25,197.31,197.3,0.7]
[1755913097181,8.25,197.31,197.3,0.03]
[1755913097602,8.25,197.31,197.3,0.7]
[1755913097807,48.61,197.31,197.3,5.15549488]
[1755913098005,48.61,197.31,197.3,0.03]
[1755913098396,8.25,197.31,197.3,0.03]
[1755913098600,48.61,197.31,197.3,0.03]
[1755913099739,53.16549488,197.31,197.3,0.03]
[1755913100213,12.70549488,197.31,197.3,0.03]
[1755913100408,48.61,197.31,197.3,0.03]
[1755913101117,53.06549488,197.31,197.3,0.03]
[1755913101843,48.71,197.31,197.3,0.03]
[1755913101991,53.16549488,197.31,197.3,0.03]
[1755913102190,66.76108889,197.31,197.3,0.03]
[1755913102409,26.68541203,197.31,197.3,0.03]
[1755913102627,66.76108889,197.31,197.3,0.03]
[1755913102801,53.06549488,197.31,197.3,0.03]
[1755913102995,48.61,197.31,197.3,0.03]
[1755913103227,53.65549488,197.31,197.3,0.03]
[1755913103525,8.25,197.31,197.3,0.03]
[1755913103723,53.06549488,197.31,197.3,0.03]
[1755913104896,8.25,197.31,197.3,0.7]
[1755913105125,48.61,197.31,197.3,0.7]
[1755913105531,8.25,197.31,197.3,0.7]
[1755913105705,48.61,197.31,197.3,0.7]
[1755913106102,8.25,197.31,197.3,0.7]
[1755913106418,48.61,197.31,197.3,0.7]
[1755913107739,48.61,197.31,197.3,0.03]
[1755913109228,53.65549488,197.31,197.3,0.03]
[1755913110122,67.25108889,197.31,197.3,0.03]
[1755913111029,26.89108889,197.31,197.3,0.03]
[1755913111338,67.25108889,197.31,197.3,0.03]
[1755913111713,62.79559401,197.31,197.3,0.03]
[1755913112524,26.89108889,197.31,197.3,0.03]
[1755913112729,53.06549488,197.31,197.3,0.03]
[1755913112911,8.25,197.31,197.3,5.20549488]
[1755913113109,48.61,197.31,197.3,0.03]
[1755913113319,53.82974156,197.31,197.3,0.03]
[1755913114231,53.23974156,197.31,197.3,0.03]
[1755913114429,48.61,197.31,197.3,0.03]
[1755913115316,8.25,197.32,197.3,5.37974156]
[1755913115525,8.25,197.32,197.31,5.34974156]
[1755913115824,48.63,197.32,197.31,0.72]
[1755913117339,8.25,197.31,197.3,4.65974156]
[1755913117546,8.25,197.31,197.3,0.03]
[1755913119059,27.06533557,197.31,197.3,0.03]
[1755913121971,67.44533557,197.31,197.3,0.03]
[1755913123668,8.25,197.18,197.13,13.59559401]
[1755913124041,8.25,197.18,197.17,4.62974156]
[1755913124546,8.25,197.19,197.17,4.62974156]
[1755913124764,8.25,197.19,197.18,4.62974156]
[1755913124966,8.25,197.19,197.18,3.12974156]
[1755913125259,8.25,197.19,197.18,4.62974156]
[1755913125474,40.38,197.21,197.18,4.62974156]
[1755913125639,40.38,197.21,197.2,4.62974156]
[1755913125846,48.63,197.21,197.2,5.34974156]
[1755913126151,8.25,197.24,197.23,26.0]
[1755913126354,48.63,197.24,197.23,31.34974156]
[1755913127160,48.63,197.24,197.23,5.34974156]
[1755913127359,8.25,197.24,197.23,5.34974156]
[1755913127561,40.44,197.24,197.23,5.34974156]
[1755913127774,48.69,197.24,197.22,4.62974156]
[1755913128084,8.25,197.22,197.2,0.72]
[1755913128250,48.69,197.22,197.21,5.34974156]
[1755913129678,40.44,197.22,197.21,4.62974156]
[1755913129867,40.44,197.22,197.21,0.72]
[1755913130054,48.69,197.22,197.21,5.34974156]
[1755913130770,8.25,197.22,197.21,5.34974156]
[1755913130970,48.71,197.23,197.21,5.34974156]
[1755913131172,8.25,197.22,197.21,0.72]
[1755913131475,48.71,197.23,197.22,0.72]
[1755913132270,48.71,197.23,197.22,5.34974156]
[1755913132769,8.25,197.21,197.19,0.28432314]
[1755913133072,8.25,197.2,197.19,4.62974156]
[1755913134175,8.25,197.2,197.18,0.72]
[1755913134373,8.25,197.2,197.19,4.62974156]
[1755913134574,48.69,197.2,197.19,5.34974156]
[1755913134758,40.44,197.21,197.19,5.34974156]
[1755913134955,40.44,197.21,197.16,26.0]
[1755913134956,48.69,197.21,197.2,5.34974156]
[1755913135957,40.44,197.21,197.2,5.34974156]
[1755913136158,48.69,197.21,197.2,5.34974156]
[1755913136462,48.69,197.21,197.2,4.62974156]
[1755913136657,48.67,197.21,197.2,30.62974156]
[1755913136863,8.25,197.21,197.2,31.34974156]
[1755913137061,48.67,197.21,197.2,31.34974156]
[1755913137452,8.25,197.21,197.2,31.34974156]
[1755913137652,40.4,197.22,197.21,0.28432314]
[1755913137882,8.25,197.28,197.21,31.6240647]
[1755913138074,8.25,197.26,197.22,0.71]
[1755913138380,40.42,197.25,197.23,26.0]
[1755913138769,8.25,197.24,197.21,0.71]
[1755913139091,8.25,197.23,197.22,0.71]
[1755913139577,8.25,197.23,197.22,5.33974156]
[1755913140352,40.42,197.25,197.22,5.33974156]
[1755913140579,40.4,197.26,197.24,30.62974156]
[1755913140753,40.4,197.26,197.24,26.71]
[1755913140956,8.25,197.25,197.24,26.0]
[1755913141156,40.4,197.26,197.24,30.62974156]
[1755913141355,40.4,197.26,197.25,4.62974156]
[1755913141556,48.65,197.26,197.25,4.62974156]
[1755913142850,48.65,197.26,197.24,26.0]
[1755913142851,8.25,197.25,197.24,4.62974156]
[1755913143991,8.25,197.24,197.2,26.0]
[1755913144283,78.91,197.23,197.2,26.71]
[1755913144899,40.38,197.22,197.17,0.71]
[1755913145058,8.25,197.22,197.18,26.0]
[1755913145261,48.63,197.21,197.19,0.71]
[1755913145481,48.63,197.21,197.2,0.71]
[1755913145855,40.38,197.22,197.2,0.71]
[1755913146261,8.25,197.21,197.2,0.71]
[1755913146487,8.25,197.21,197.2,5.33974156]
[1755913146696,40.38,197.22,197.2,5.33974156]
[1755913146895,40.38,197.22,197.21,4.62974156]
[1755913147070,48.63,197.22,197.21,4.62974156]
[1755913147467,40.38,197.22,197.21,4.62974156]
[1755913147689,48.63,197.22,197.21,4.62974156]
[1755913149201,78.91,197.23,197.21,5.33974156]
[1755913149202,87.16,197.23,197.21,5.33974156]
[1755913149398,127.54,197.23,197.22,4.62974156]
[1755913149569,87.16,197.23,197.22,4.62974156]
[1755913149763,127.54,197.23,197.22,4.62974156]
[1755913150359,87.16,197.23,197.2,0.71]
[1755913150591,127.54,197.23,197.22,30.62974156]
[1755913150774,119.29,197.23,197.22,30.62974156]
[1755913150975,127.54,197.23,197.22,30.62974156]
[1755913151785,127.54,197.23,197.22,4.62974156]
[1755913153173,127.54,197.23,197.19,0.71]
[1755913153496,127.54,197.23,197.22,4.62974156]
[1755913153995,119.29,197.23,197.22,4.62974156]
[1755913154289,127.54,197.23,197.22,4.62974156]
[1755913154868,119.29,197.23,197.22,4.62974156]
[1755913155366,127.54,197.23,197.22,4.62974156]
[1755913156772,119.29,197.23,197.22,4.62974156]
[1755913157678,128.2,197.23,197.18,26.74]
[1755913157996,87.82,197.23,197.22,4.62974156]
[1755913158172,87.16,197.22,197.18,0.03]
[1755913158373,8.25,197.2,197.18,0.03]
[1755913158591,49.29,197.21,197.18,26.03]
[1755913158786,8.25,197.2,197.18,26.03]
[1755913159593,8.25,197.2,197.19,30.62974156]
[1755913160196,8.25,197.2,197.19,26.0]
[1755913160371,8.25,197.19,197.18,0.03]
[1755913160578,8.25,197.2,197.18,4.65974156]
[1755913160775,8.25,197.2,197.19,5.33974156]
[1755913161079,8.25,197.23,197.2,0.28432314]
[1755913161381,0.06,197.25,197.22,4.62974156]
[1755913161689,0.06,197.25,197.24,4.62974156]
[1755913161996,0.06,197.25,197.24,8.17102065]
[1755913162177,0.06,197.25,197.24,8.88102065]
[1755913163278,0.06,197.28,197.27,26.0]
[1755913163481,0.06,197.28,197.27,34.45534379]
[1755913163687,0.06,197.28,197.27,35.16534379]
[1755913165296,0.06,197.28,197.27,48.7609378]
[1755913165499,0.06,197.29,197.27,48.7609378]
[1755913165693,40.36,197.35,197.31,26.0]
[1755913165892,8.25,197.36,197.34,30.62974156]
[1755913166099,48.61,197.36,197.35,34.17102065]
[1755913166275,49.27,197.36,197.35,34.17102065]
[1755913166609,48.61,197.36,197.35,34.17102065]
[1755913166972,49.27,197.36,197.35,3.54127909]
[1755913167582,49.27,197.36,197.35,3.53310639]
[1755913168875,67.49533557,197.36,197.35,3.53310639]
[1755913169074,8.25,197.29,197.27,4.62974156]
[1755913169292,48.61,197.29,197.28,3.53158476]
[1755913169495,49.29,197.29,197.28,3.53158476]
[1755913171881,49.35,197.29,197.28,3.53158476]
[1755913172799,48.67,197.29,197.28,3.53158476]
[1755913172999,48.67,197.29,197.28,8.16132632]
[1755913174907,0.06,197.29,197.28,34.87132632]
[1755913175802,0.06,197.29,197.28,34.16132632]
[1755913176397,0.06,197.29,197.28,26.0]
[1755913176705,0.06,197.29,197.28,34.16045929]
[1755913177082,8.99,197.29,197.28,29.53071773]
[1755913177283,8.99,197.29,197.28,3.53071773]
[1755913177284,49.35,197.29,197.28,3.53071773]
[1755913177987,67.57533557,197.29,197.28,2.81071773]
[1755913178198,8.25,197.22,197.21,4.62974156]
[1755913178397,48.59,197.22,197.21,4.62974156]
[1755913178801,48.59,197.22,197.21,5.33974156]
[1755913178980,40.34,197.22,197.21,5.33974156]
[1755913179484,48.59,197.22,197.21,4.62974156]
[1755913180106,8.25,197.22,197.21,4.62974156]
[1755913180296,48.59,197.22,197.21,4.62974156]
[1755913180699,40.34,197.22,197.21,4.62974156]
[1755913182483,48.59,197.22,197.21,4.62974156]
[1755913183088,40.34,197.22,197.21,4.62974156]
[1755913183284,8.25,197.27,197.24,26.0]
[1755913183612,8.25,197.27,197.25,0.71]
[1755913183804,48.59,197.27,197.26,4.62974156]
[1755913184606,48.59,197.27,197.19,0.71]
[1755913184607,8.25,197.24,197.19,0.71]
[1755913184804,40.34,197.24,197.23,30.62974156]
[1755913185106,48.59,197.24,197.23,30.62974156]
[1755913185813,40.34,197.24,197.23,30.62974156]
[1755913185994,48.59,197.24,197.23,26.0]
[1755913186195,48.59,197.24,197.23,30.62974156]
[1755913188317,48.59,197.24,197.23,26.0]
[1755913188619,48.59,197.24,197.23,30.62974156]
[1755913188815,48.59,197.24,197.23,5.33974156]
[1755913188993,48.59,197.24,197.23,4.62974156]
[1755913189723,8.25,197.23,197.21,0.74]
[1755913190019,48.59,197.23,197.22,3.51795808]
[1755913190816,48.59,197.23,197.22,8.14769964]
[1755913191021,48.59,197.23,197.22,8.85769964]
[1755913191317,8.25,197.23,197.22,8.85769964]
[1755913191826,8.25,197.24,197.22,8.85769964]
[1755913192011,8.25,197.24,197.23,8.85769964]
[1755913194719,8.25,197.24,197.23,8.86680866]
[1755913194938,8.25,197.25,197.23,8.86680866]
[1755913195213,8.25,197.25,197.24,8.86680734]
[1755913196901,40.34,197.26,197.24,8.86680734]
[1755913197112,40.34,197.26,197.25,8.15680734]
[1755913197306,40.34,197.26,197.25,8.85680734]
[1755913197507,79.0,197.27,197.25,34.85680734]
[1755913197703,79.0,197.27,197.26,8.85680734]
[1755913197908,79.0,197.27,197.26,4.22706578]
[1755913198114,79.0,197.27,197.26,8.85680734]
[1755913200222,79.0,197.27,197.26,9.14113048]
[1755913200424,79.0,197.27,197.26,13.77087204]
[1755913200623,0.06,197.28,197.27,0.28432314]
[1755913200924,0.06,197.28,197.27,9.14113048]
[1755913202226,0.06,197.28,197.27,35.14113048]
[1755913202812,0.06,197.28,197.27,35.1391612]
[1755913203720,0.06,197.31,197.3,26.28432314]
[1755913204029,0.06,197.31,197.3,34.4391612]
[1755913204213,0.06,197.31,197.3,35.1391612]
[1755913204729,0.06,197.33,197.31,13.87991715]
[1755913204932,0.06,197.33,197.32,8.15483806]
[1755913205137,0.06,197.33,197.32,8.85483806]
[1755913205924,0.06,197.33,197.32,22.73475506]
[1755913206130,8.31,197.38,197.35,26.0]
[1755913206335,8.31,197.38,197.37,4.62974156]
[1755913206530,8.31,197.38,197.37,8.15483806]
[1755913206830,0.06,197.38,197.37,9.1391612]
[1755913207001,0.06,197.4,197.39,26.28432314]
[1755913207203,0.06,197.42,197.4,0.28432314]
[1755913207424,0.06,197.42,197.41,9.1391612]
[1755913209419,0.06,197.43,197.42,0.28432314]
[1755913209633,0.2,197.45,197.44,26.28432314]
[1755913209814,0.06,197.46,197.45,0.28432314]
[1755913210018,0.06,197.46,197.45,9.1391612]
[1755913211135,0.06,197.47,197.46,4.9140647]
[1755913211310,0.06,197.51,197.46,22.73475521]
[1755913211510,0.06,197.51,197.47,9.1391612]
[1755913211716,0.06,197.51,197.5,30.9140647]
[1755913211926,0.06,197.51,197.5,34.46163886]
[1755913212127,0.06,197.54,197.51,0.28432314]
[1755913212321,0.06,197.54,197.53,4.62974156]
[1755913212625,0.06,197.54,197.53,8.17651197]
[1755913213026,0.06,197.54,197.53,34.87651197]
[1755913213422,8.31,197.54,197.53,34.87651197]
[1755913213728,8.31,197.54,197.53,30.62974156]
[1755913214425,8.31,197.54,197.53,26.0]
[1755913214618,8.31,197.54,197.53,30.62974156]
[1755913215215,8.9,197.54,197.53,30.62974156]
[1755913215640,8.31,197.54,197.53,30.62974156]
[1755913216338,9.41,197.54,197.53,30.62974156]
[1755913217947,8.31,197.54,197.53,31.32974156]
[1755913218816,8.31,197.54,197.53,31.6140647]
[1755913219613,8.31,197.54,197.53,30.9140647]
[1755913220665,8.31,197.54,197.53,31.6140647]
[1755913220952,8.31,197.54,197.53,26.98432314]
[1755913221130,8.31,197.54,197.53,31.6140647]
[1755913221712,8.31,197.54,197.53,26.28432314]
[1755913221915,8.31,197.54,197.53,30.9140647]
[1755913223534,0.06,197.54,197.53,5.6140647]
[1755913223719,0.06,197.54,197.53,9.15793855]
[1755913224151,0.06,197.54,197.53,30.9140647]
[1755913224924,0.06,197.54,197.53,31.6140647]
[1755913225124,0.06,197.54,197.53,35.15803349]
[1755913225337,0.06,197.54,197.53,26.28432314]
[1755913225537,0.06,197.54,197.53,31.6140647]
[1755913226322,0.06,197.54,197.53,30.9140647]
[1755913226522,0.06,197.54,197.53,31.6140647]
[1755913227544,0.06,197.54,197.53,35.15653994]
[1755913228837,0.06,197.54,197.53,31.6140647]
[1755913229060,0.06,197.54,197.53,35.15680907]
[1755913229864,0.06,197.54,197.53,30.52642911]
[1755913230156,0.06,197.54,197.53,35.15617067]
[1755913231125,0.06,197.54,197.53,35.15648091]
[1755913232151,0.06,197.54,197.53,31.6140647]
[1755913232922,0.06,197.54,197.53,26.98432314]
[1755913233157,0.06,197.54,197.53,31.6140647]
[1755913233539,0.06,197.54,197.53,35.1591503]
[1755913233741,0.06,197.54,197.53,31.6140647]
[1755913234054,0.06,197.54,197.53,35.1591503]
[1755913235631,0.06,197.54,197.53,31.6140647]
[1755913235935,0.06,197.54,197.53,35.16205062]
[1755913238756,0.06,197.54,197.53,31.6140647]
[1755913239060,0.06,197.54,197.53,35.16769176]
[1755913239770,0.06,197.54,197.53,53.39302733]
[1755913239943,0.06,197.56,197.55,18.50965871]
[1755913240134,0.06,197.56,197.55,62.28328577]
[1755913240335,0.06,197.56,197.55,62.95328577]
[1755913240770,0.06,197.56,197.55,64.97906377]
[1755913242382,0.65,197.56,197.55,3.55362706]
[1755913242671,0.65,197.56,197.55,8.18336862]
[1755913242878,0.65,197.56,197.55,34.18336862]
[1755913243175,0.06,197.56,197.55,8.18336862]
[1755913243354,0.06,197.56,197.55,8.46769176]
[1755913245072,0.06,197.56,197.55,34.46769176]
[1755913245241,79.06,197.56,197.55,34.46769176]
[1755913247966,79.06,197.56,197.55,34.49188158]
[1755913248472,79.06,197.56,197.55,29.86214002]
[1755913248673,79.06,197.56,197.55,34.49188158]
[1755913250162,79.06,197.56,197.55,34.50005198]
[1755913251076,0.06,197.56,197.55,34.50005198]
[1755913251977,0.06,197.56,197.55,29.87031042]
[1755913252271,0.06,197.56,197.55,34.50005198]
[1755913254072,0.06,197.56,197.55,29.58598728]
[1755913254380,0.06,197.56,197.55,34.21572884]
[1755913256699,0.06,197.56,197.55,34.88572884]
[1755913257069,0.06,197.56,197.55,34.86011212]
[1755913257462,0.06,197.56,197.55,31.5840647]
[1755913257674,0.06,197.56,197.55,35.14421854]
[1755913259761,0.06,197.56,197.55,29.84447698]
[1755913259956,8.9,197.56,197.55,29.56015384]
[1755913260168,8.9,197.56,197.55,3.56015384]
[1755913260364,8.31,197.56,197.55,3.56015384]
[1755913260570,8.9,197.56,197.55,3.56015384]
[1755913260779,8.31,197.56,197.55,29.56015384]
[1755913261385,8.9,197.56,197.55,3.56015384]
[1755913261894,8.31,197.56,197.55,3.56015384]
[1755913262256,8.31,197.56,197.55,8.1898954]
[1755913262456,8.31,197.56,197.55,3.56015384]
[1755913264807,8.31,197.56,197.55,30.22015384]
[1755913264974,8.31,197.56,197.55,26.0]
[1755913265306,8.31,197.56,197.55,29.56239372]
[1755913266508,8.31,197.56,197.55,34.19213528]
[1755913266802,0.06,197.56,197.55,30.50671686]
[1755913267104,0.06,197.56,197.55,35.13645842]
[1755913267290,0.06,197.56,197.55,34.47645842]
[1755913267607,0.06,197.56,197.55,29.56239372]
[1755913267785,8.31,197.56,197.55,29.56239372]
[1755913268179,8.31,197.56,197.55,3.56270183]
[1755913268500,8.31,197.56,197.55,34.19244339]
[1755913268697,8.31,197.56,197.55,29.56270183]
[1755913268910,8.31,197.56,197.55,34.19244339]
[1755913269104,8.31,197.56,197.55,34.19262312]
[1755913269679,8.31,197.56,197.55,29.56288156]
[1755913270202,8.31,197.56,197.55,34.19262312]
[1755913274008,8.31,197.56,197.55,30.62974156]
[1755913274216,8.31,197.56,197.55,34.19276944]
[1755913274707,8.31,197.56,197.55,29.56302788]
[1755913276410,8.31,197.56,197.55,3.56302788]
[1755913276584,8.31,197.56,197.55,29.56302788]
[1755913276785,8.31,197.56,197.55,3.56302788]
[1755913276981,26.53533557,197.56,197.55,2.97302788]
[1755913277224,21.84559401,197.55,197.54,0.03]
[1755913277505,66.61533557,197.55,197.54,0.03]
[1755913278900,26.47533557,197.55,197.54,0.03]
[1755913279101,66.61533557,197.55,197.54,0.03]
[1755913283684,78.91,197.5,197.46,0.66]
[1755913283898,127.3,197.49,197.46,0.66]
[1755913284108,48.39,197.49,197.46,0.66]
[1755913285020,53.01974156,197.49,197.46,0.66]
[1755913288701,48.39,197.49,197.46,0.66]
[1755913289013,53.01974156,197.49,197.46,0.66]
[1755913289914,53.01974156,197.49,197.44,0.71]
[1755913290614,53.01974156,197.49,197.46,0.03]
[1755913290615,55.04736856,197.49,197.46,0.03]
[1755913293605,68.64296257,197.49,197.46,0.03]
[1755913293807,32.12991715,197.47,197.46,0.03]
[1755913294030,39.59559401,197.45,197.44,0.03]
[1755913294206,84.36533557,197.45,197.44,0.03]